{"text_format":"1","workbook":"xlsx","n_sheets":3,"sheets":["Instruccions","Reformulació Pressupost Ba","Resum Pressupost"],"not_rendered":{"charts":0,"images":1,"macros":1,"external_links":0,"defined_names":7,"comments":1,"pivot_tables":0},"unopened":[],"bounds":{"document_bytes":16777216,"sheet_cells":100000,"rows_first":2000,"rows_last":500,"rows_between":2000,"halvings":0,"cell_chars":16384,"cell_head_chars":4096},"cells_cut":0,"cells_raw":0,"read":"whole","date_system":"1900"}

{"sheet":"Instruccions","index":0,"n_rows":18,"n_cols":10,"rows_kept":18,"cut":false,"hidden":false,"merged":[[16,1,16,17],[1,9,1,11],[2,2,3,17],[4,2,4,17],[6,2,6,17],[8,1,8,17],[9,1,9,17],[10,1,10,17],[12,1,12,17],[14,1,14,17]]}
[]
[null,null,null,null,null,null,null,null,null,"Doc_basic3_pressup_reformulat_Ba INSTRUCCIONS"]
[null,null,"SUBVENCIONS DE L’AJUNTAMENT DE BARCELONA PER L’ENFORTIMENT DE L’ECONOMIA SOCIAL I SOLIDÀRIA I PER LA INTERCOOPERACIÓ EN L’ESTRATÈGIA #ESSBCN2030 - ENFORTIM L’ESS 2025"]
[]
[null,null,"Aspectes rellevants relacionats amb la reformulació"]
[]
[null,null,"INSTRUCCIONS"]
[]
[null,"1. Emplenar només les cel·les en blanc de la pestanya  \"Reformulació Pressupost\" amb les dades econòmiques del projecte:"]
[null,"1.1  Emplenar els quadres DADES BÀSIQUES-PREVISIÓ DE DESPESES DEL PROJECTE SUBVENCIONABLE INICIAL, amb les dades econòmiques de la proposta inicial amb subvenció atorgada."]
[null,"1.2  Emplenar els quadres DADES BÀSIQUES-PREVISIÓ DE DESPESES DEL PROJECTE REFORMULAT, amb les dades econòmiques de la proposta de reformulació."]
[]
[null,"2. Revisar i emplenar només les cel·les en blanc de la pestanya  \"Resum Pressupost\" amb les dades econòmiques del projecte."]
[]
[null,"3. Imprimir els fulls de les 2 pestanyes (Reformulació pressupost i Resum Pressupost). En format pdf."]
[]
[null,"4. Si la sol·licitud es va presentar per via telemàtica, cal que registreu la documentació telemàticament dins la convocatòria específica com annexió de documents addicionals i feu servir el número de tràmit que el sistema de registre us va donar en el moment de la presentació de la sol·licitud de la subvenció."]
[null,"Enllaç per realitzar el tràmit."]

{"sheet":"Reformulació Pressupost Ba","index":1,"n_rows":142,"n_cols":15,"rows_kept":142,"cut":false,"hidden":false,"merged":[[136,0,136,14],[137,0,137,14],[138,0,138,14],[12,7,12,9],[13,7,13,9],[11,1,11,3],[12,1,12,3],[13,1,13,3],[11,7,11,9],[16,12,16,14],[14,1,14,3],[16,0,16,4],[14,7,14,9],[16,6,16,10],[10,0,10,3],[10,6,10,9],[1,1,1,10],[3,0,3,14],[6,1,6,9],[7,1,7,9],[8,1,8,9],[4,0,4,14],[139,0,139,14],[140,0,140,14],[141,0,141,14],[123,0,123,14],[124,0,124,14],[125,0,125,14],[126,0,126,14],[127,0,127,14],[128,0,128,14],[129,0,129,14],[130,0,130,14],[131,0,131,14],[132,0,132,14],[133,0,133,14],[134,0,134,14],[135,0,135,14]]}
[]
[null,"Reformulació pressupost Modalitat Ba"]
[]
["Programa de subvencions de l'Ajuntament de Barcelona per l'enfortiment de l'Economia Social i Solidària i per la intercooperació en l'Estratègia #ESSBCN2030 - ENFORTIM L’ESS 2025"]
["EMPLENAR NOMÉS LES CEL·LES EN BLANC"]
[]
["Nom de la persona jurídica"]
["NIF de la persona jurídica"]
["Nom del projecte subvencionable"]
[]
["DADES BÀSIQUES DEL PROJECTE INICIAL SOL·LICITAT\n(indicar les dades sol·licitades a la proposta inicial)",null,null,null,null,null,"DADES BÀSIQUES PROJECTE REFORMULAT"]
["Import total del projecte subvencionable",null,null,null,null,null,"Import total del projecte REFORMULAT",null,null,null,{"$f":"IF(H12<B12*0.7,\"No es pot reformular més d'un 30%\",\"\")","v":""}]
["Import imputable a la subvenció municipal",null,null,null,null,null,"Import imputable a la subvenció ATORGADA\n(indicar l'import atorgat a la resolució)"]
["Import de l'aportació i/o cofinançament de l'organització",{"$f":"+B12-B13","v":0},null,null,null,null,"Import de l'aportació i/o cofinançament de l'organització",{"$f":"H12-H13","v":0}]
["% de l'import sol·licitat respecte el total del projecte subvencionable (màxim 80%*)",{"$f":"IF(B13>0,B13/B12,\"\")","v":""},null,null,"* La quantia de la subvenció atorgada no superarà el 80% de la despesa total del projecte a subvencionar. ",null,"% de l'import sol·licitat respecte el total del projecte subvencionable (màxim 80%*)\n(ha de ser igual o inferior respecte el % de la sol·licitud inicial)",{"$f":"IF(H13>0,H13/H12,\"\")","v":""},null,null,{"$f":"IF(H15=\"\",\"\",IF(H15>0.8,\"La quantia de la subvenció atorgada no pot superar el 80% de la despesa total del projecte\",IF(H15>B15,\"Ha de ser igual o inferior al % de la proposta inicial\",\"\")))","v":""}]
[]
["PREVISIÓ DE DESPESES DEL PROJECTE SUBVENCIONABLE INICIAL",null,null,null,null,null,"PREVISIÓ DE DESPESES DEL PROJECTE REFORMULAT",null,null,null,null,null,"DIFERÈNCIA REFORMULACIÓ I PROJECTE INICIAL"]
[]
["Partides","Import imputable a la subvenció municipal","% subvenció / total","Import de l'aportació i/o Cofinançament de l'organització","Import total del projecte",null,"Partides","Import imputable a la subvenció municipal","% subvenció / total","Import de l'aportació i/o Cofinançament de l'organització","Import total del projecte",null,"Import imputable a la subvenció municipal","Import de l'aportació i/o Cofinançament de l'organització","Import total del projecte"]
["D1. Retribucions i seguretat social (règim general) del personal propi vinculat directament i de forma significativa al projecte subvencionable (màxim 25% subvenció)",{"$f":"SUM(B21:B25)","v":0},{"$f":"IF(B20>0,B20/$B$13,)","v":0},{"$f":"SUM(D21:D25)","v":0},{"$f":"B20+D20","v":0},null,"D1. Retribucions i seguretat social (règim general) del personal propi vinculat directament i de forma significativa al projecte subvencionable (màxim 25% subvenció)",{"$f":"SUM(H21:H25)","v":0},{"$f":"IF(H20>0,H20/$H$13,)","v":0},{"$f":"SUM(J21:J25)","v":0},{"$f":"+H20+J20","v":0},null,{"$f":"B20-H20","v":0},{"$f":"D20-J20","v":0},0]
[null,null,null,null,0,null,null,null,null,null,0,null,{"$f":"B21-H21","v":0},0,0]
[null,null,null,null,0,null,null,null,null,null,0,null,0,0,0]
[null,null,null,null,0,null,null,null,null,null,0,null,0,0,0]
[null,null,null,null,0,null,null,null,null,null,0,null,0,0,0]
[null,null,null,null,0,null,null,null,null,null,0,null,0,0,0]
["TOTAL DE DESPESES DEL PERSONAL\nMàxim 25% de l'import imputable a la subvenció municipal si es tracta de personal propi assignat al projecte",{"$f":"B20","v":0},{"$f":"IF(B26>0,B26/$B$13,)","v":0},{"$f":"D20","v":0},{"$f":"E20","v":0},null,"TOTAL DE DESPESES DEL PERSONAL\nMàxim 25% de l'import imputable a la subvenció municipal si es tracta de personal propi assignat al projecte",{"$f":"H20","v":0},{"$f":"IF(H26>0,H26/$H$13,)","v":0},{"$f":"J20","v":0},{"$f":"K20","v":0},null,{"$f":"B26-H26","v":0},{"$f":"D26-J26","v":0},0]
["D2. Treballs realitzats per professionals i empreses externes directament vinculades a l’acompanyament de processos de l’organització i amb les seves associades vinculats a les accions subvencionades",{"$f":"SUM(B28:B32)","v":0},{"$f":"IF(B27>0,B27/$B$13,)","v":0},{"$f":"SUM(D28:D32)","v":0},{"$f":"B27+D27","v":0},null,"D2. Treballs realitzats per professionals i empreses externes directament vinculades a l’acompanyament de processos de l’organització i amb les seves associades vinculats a les accions subvencionades",{"$f":"SUM(H28:H32)","v":0},{"$f":"IF(H27>0,H27/$H$13,)","v":0},{"$f":"SUM(J28:J32)","v":0},{"$f":"+H27+J27","v":0},null,0,{"$f":"D27-J27","v":0},0]
[null,null,null,null,0,null,null,null,null,null,0,null,0,0,0]
[null,null,null,null,0,null,null,null,null,null,0,null,0,0,0]
[null,null,null,null,0,null,null,null,null,null,0,null,0,0,0]
[null,null,null,null,0,null,null,null,null,null,0,null,0,0,0]
[null,null,null,null,0,null,null,null,null,null,0,null,0,0,0]
["D3. Lloguer de bens immobles directament vinculats al projecte subvencionable (en cap cas s'acceptarà el lloguer de la seu de la persona jurídica sol·licitant o en agrupació).",{"$f":"SUM(B34:B38)","v":0},{"$f":"IF(B33>0,B33/$B$13,)","v":0},{"$f":"SUM(D34:D38)","v":0},{"$f":"B33+D33","v":0},null,"D3. Lloguer de bens immobles directament vinculats al projecte subvencionable (en cap cas s'acceptarà el lloguer de la seu de la persona jurídica sol·licitant o en agrupació).",{"$f":"SUM(H34:H38)","v":0},{"$f":"IF(H33>0,H33/$H$13,)","v":0},{"$f":"SUM(J34:J38)","v":0},{"$f":"H33+J33","v":0},null,{"$f":"B33-H33","v":0},{"$f":"D33-J33","v":0},{"$f":"E33-K33","v":0}]
[null,null,null,null,0,null,null,null,null,null,0,null,{"$f":"B34-H34","v":0},0,0]
[null,null,null,null,0,null,null,null,null,null,0,null,0,0,0]
[null,null,null,null,0,null,null,null,null,null,0,null,0,0,0]
[null,null,null,null,0,null,null,null,null,null,0,null,0,0,0]
[null,null,null,null,0,null,null,null,null,null,{"$f":"+H38+J38","v":0},null,0,0,0]
["D4. Adquisició de materials i béns consumibles íntegrament imputables al projecte subvencionable.",{"$f":"SUM(B40:B44)","v":0},{"$f":"IF(B39>0,B39/$B$13,)","v":0},{"$f":"SUM(D40:D44)","v":0},0,null,"D4. Adquisició de materials i béns consumibles íntegrament imputables al projecte subvencionable.",{"$f":"SUM(H40:H44)","v":0},{"$f":"IF(H39>0,H39/$H$13,)","v":0},{"$f":"SUM(J40:J44)","v":0},{"$f":"H39+J39","v":0},null,{"$f":"B39-H39","v":0},{"$f":"D39-J39","v":0},{"$f":"E39-K39","v":0}]
[null,null,null,null,0,null,null,null,null,null,0,null,{"$f":"B40-H40","v":0},0,0]
[null,null,null,null,0,null,null,null,null,null,0,null,0,0,0]
[null,null,null,null,0,null,null,null,null,null,0,null,0,0,0]
[null,null,null,null,0,null,null,null,null,null,0,null,0,0,0]
[null,null,null,null,0,null,null,null,null,null,{"$f":"+H44+J44","v":0},null,0,0,0]
["D5. Publicitat i propaganda de les activitats directament vinculades al projecte subvencionable.",{"$f":"SUM(B46:B50)","v":0},{"$f":"IF(B45>0,B45/$B$13,)","v":0},{"$f":"SUM(D46:D50)","v":0},0,null,"D5. Publicitat i propaganda de les activitats directament vinculades al projecte subvencionable.",{"$f":"SUM(H46:H50)","v":0},{"$f":"IF(H45>0,H45/$H$13,)","v":0},{"$f":"SUM(J46:J50)","v":0},{"$f":"H45+J45","v":0},null,{"$f":"B45-H45","v":0},{"$f":"D45-J45","v":0},{"$f":"E45-K45","v":0}]
[null,null,null,null,0,null,null,null,null,null,0,null,{"$f":"B46-H46","v":0},0,0]
[null,null,null,null,0,null,null,null,null,null,0,null,0,0,0]
[null,null,null,null,0,null,null,null,null,null,0,null,0,0,0]
[null,null,null,null,0,null,null,null,null,null,0,null,0,0,0]
[null,null,null,null,0,null,null,null,null,null,{"$f":"+H50+J50","v":0},null,0,0,0]
["D6. Viatges i desplaçaments imputables a les activitats del projecte subvencionable (amb un límit del 7% de la subvenció).",{"$f":"SUM(B52:B56)","v":0},{"$f":"IF(B51>0,B51/$B$13,)","v":0},{"$f":"SUM(D52:D56)","v":0},0,null,"D6. Viatges i desplaçaments imputables a les activitats del projecte subvencionable (amb un límit del 7% de la subvenció).",{"$f":"SUM(H52:H56)","v":0},{"$f":"IF(H51>0,H51/$H$13,)","v":0},{"$f":"SUM(J52:J56)","v":0},{"$f":"H51+J51","v":0},null,{"$f":"B51-H51","v":0},{"$f":"D51-J51","v":0},{"$f":"E51-K51","v":0}]
[null,null,null,null,0,null,null,null,null,null,0,null,{"$f":"B52-H52","v":0},0,0]
[null,null,null,null,0,null,null,null,null,null,0,null,0,0,0]
[null,null,null,null,0,null,null,null,null,null,0,null,0,0,0]
[null,null,null,null,0,null,null,null,null,null,0,null,0,0,0]
[null,null,null,null,0,null,null,null,null,null,{"$f":"+H56+J56","v":0},null,0,0,0]
["D7. Despeses de l’informe d’auditoria (amb un límit màxim de 1.500 euros de la subvenció)",{"$f":"SUM(B58:B62)","v":0},{"$f":"IF(B57>0,B57/$B$13,)","v":0},{"$f":"SUM(D58:D62)","v":0},0,null,"D7. Despeses de l’informe d’auditoria (amb un límit màxim de 1.500 euros de la subvenció)",{"$f":"SUM(H58:H62)","v":0},{"$f":"IF(H57>0,H57/$H$13,)","v":0},{"$f":"SUM(J58:J62)","v":0},{"$f":"H57+J57","v":0},null,{"$f":"B57-H57","v":0},{"$f":"D57-J57","v":0},{"$f":"E57-K57","v":0}]
[null,null,null,null,0,null,null,null,null,null,0,null,{"$f":"B58-H58","v":0},0,0]
[null,null,null,null,0,null,null,null,null,null,0,null,0,0,0]
[null,null,null,null,0,null,null,null,null,null,0,null,0,0,0]
[null,null,null,null,0,null,null,null,null,null,0,null,0,0,0]
[null,null,null,null,0,null,null,null,null,null,{"$f":"+H62+J62","v":0},null,0,0,0]
["D8. Altres despeses que de manera justificada puguin imputar-se directament al projecte subvencionable.",{"$f":"SUM(B64:B68)","v":0},{"$f":"IF(B63>0,B63/$B$13,)","v":0},{"$f":"SUM(D64:D68)","v":0},0,null,"D8. Altres despeses que de manera justificada puguin imputar-se directament al projecte subvencionable.",{"$f":"SUM(H64:H68)","v":0},{"$f":"IF(H63>0,H63/$H$13,)","v":0},{"$f":"SUM(J64:J68)","v":0},{"$f":"H63+J63","v":0},null,{"$f":"B63-H63","v":0},{"$f":"D63-J63","v":0},{"$f":"E63-K63","v":0}]
[null,null,null,null,0,null,null,null,null,null,0,null,{"$f":"B64-H64","v":0},0,0]
[null,null,null,null,0,null,null,null,null,null,0,null,0,0,0]
[null,null,null,null,0,null,null,null,null,null,0,null,0,0,0]
[null,null,null,null,0,null,null,null,null,null,0,null,0,0,0]
[null,null,null,null,0,null,null,null,null,null,{"$f":"+H68+J68","v":0},null,0,0,0]
["TOTAL D'ALTRES DESPESES DIRECTES ",{"$f":"B27+B33+B39+B45+B51+B57+B63","v":0},{"$f":"IF(B69>0,B69/$B$13,)","v":0},{"$f":"D27+D33+D39+D45+D51+D57+D63","v":0},{"$f":"E27+E33+E39+E45+E51+E57+E63","v":0},null,"TOTAL D'ALTRES DESPESES DIRECTES ",{"$f":"H27+H33+H39+H45+H51+H57+H63","v":0},{"$f":"IF(H69>0,H69/$H$13,)","v":0},{"$f":"J27+J33+J39+J45+J51+J57+J63","v":0},{"$f":"K27+K33+K39+K45+K51+K57+K63","v":0},null,{"$f":"B69-H69","v":0},{"$f":"D69-J69","v":0},0]
["TOTAL DESPESES DIRECTES (aquelles que s’identifiquen directament amb el projecte subvencionable)",{"$f":"SUM(B26,B69)","v":0},{"$f":"IF(B70>0,B70/$B$13,)","v":0},{"$f":"SUM(D26,D69)","v":0},{"$f":"E26+E69","v":0},null,"TOTAL DESPESES DIRECTES (aquelles que s’identifiquen directament amb el projecte subvencionable)",{"$f":"SUM(H26,H69)","v":0},{"$f":"IF(H70>0,H70/$H$13,)","v":0},{"$f":"SUM(J26,J69)","v":0},{"$f":"K26+K69","v":0},null,0,{"$f":"D70-J70","v":0},0]
["I1. Personal de suport al projecte (nòmines i seguretat social) ",{"$f":"SUM(B72:B75)","v":0},null,{"$f":"SUM(D72:D75)","v":0},{"$f":"+B71+D71","v":0},null,"I1. Personal de suport al projecte (nòmines i seguretat social) ",{"$f":"SUM(H72:H75)","v":0},null,{"$f":"SUM(J72:J75)","v":0},{"$f":"+H71+J71","v":0},null,0,{"$f":"D71-J71","v":0},0]
[null,null,null,null,0,null,null,null,null,null,0,null,0,0,0]
[null,null,null,null,0,null,null,null,null,null,0,null,0,0,0]
[null,null,null,null,0,null,null,null,null,null,0,null,0,0,0]
[null,null,null,null,0,null,null,null,null,null,0,null,0,0,0]
["I2. Assegurances",{"$f":"SUM(B77:B80)","v":0},null,{"$f":"SUM(D77:D80)","v":0},0,null,"I2. Assegurances",{"$f":"SUM(H77:H80)","v":0},null,{"$f":"SUM(J77:J80)","v":0},0,null,{"$f":"B76-H76","v":0},{"$f":"D76-J76","v":0},0]
[null,null,null,null,0,null,null,null,null,null,0,null,{"$f":"B77-H77","v":0},0,0]
[null,null,null,null,0,null,null,null,null,null,0,null,0,0,0]
[null,null,null,null,0,null,null,null,null,null,0,null,0,0,0]
[null,null,null,null,0,null,null,null,null,null,0,null,0,0,0]
["I3. Amortització",{"$f":"SUM(B82:B85)","v":0},null,{"$f":"SUM(D82:D85)","v":0},0,null,"I3. Amortització",{"$f":"SUM(H82:H85)","v":0},null,{"$f":"SUM(J82:J85)","v":0},0,null,{"$f":"B81-H81","v":0},{"$f":"D81-J81","v":0},0]
[null,null,null,null,0,null,null,null,null,null,0,null,{"$f":"B82-H82","v":0},0,0]
[null,null,null,null,0,null,null,null,null,null,0,null,0,0,0]
[null,null,null,null,0,null,null,null,null,null,0,null,0,0,0]
[null,null,null,null,0,null,null,null,null,null,0,null,0,0,0]
["I4. Lloguer de béns immobles",{"$f":"SUM(B87:B90)","v":0},null,{"$f":"SUM(D87:D90)","v":0},0,null,"I4. Lloguer de béns immobles",{"$f":"SUM(H87:H90)","v":0},null,{"$f":"SUM(J87:J90)","v":0},0,null,{"$f":"B86-H86","v":0},{"$f":"D86-J86","v":0},0]
[null,null,null,null,0,null,null,null,null,null,0,null,{"$f":"B87-H87","v":0},0,0]
[null,null,null,null,0,null,null,null,null,null,0,null,{"$f":"B88-H88","v":0},0,0]
[null,null,null,null,0,null,null,null,null,null,0,null,0,0,0]
[null,null,null,null,0,null,null,null,null,null,0,null,0,0,0]
["I5. Adquisició de materials i béns consumibles parcialment imputables al projecte",{"$f":"SUM(B92:B95)","v":0},null,{"$f":"SUM(D92:D95)","v":0},0,null,"I5. Adquisició de materials i béns consumibles parcialment imputables al projecte",{"$f":"SUM(H92:H95)","v":0},null,{"$f":"SUM(J92:J95)","v":0},0,null,{"$f":"B91-H91","v":0},{"$f":"D91-J91","v":0},0]
[null,null,null,null,0,null,null,null,null,null,0,null,{"$f":"B92-H92","v":0},0,0]
[null,null,null,null,0,null,null,null,null,null,0,null,0,0,0]
[null,null,null,null,0,null,null,null,null,null,0,null,0,0,0]
[null,null,null,null,0,null,null,null,null,null,0,null,0,0,0]
["I6. Manteniment d’edificis i/o instal·lacions",{"$f":"SUM(B97:B100)","v":0},null,{"$f":"SUM(D97:D100)","v":0},0,null,"I6. Manteniment d’edificis i/o instal·lacions",{"$f":"SUM(H97:H100)","v":0},null,{"$f":"SUM(J97:J100)","v":0},0,null,{"$f":"B96-H96","v":0},{"$f":"D96-J96","v":0},0]
[null,null,null,null,0,null,null,null,null,null,0,null,{"$f":"B97-H97","v":0},0,0]
[null,null,null,null,0,null,null,null,null,null,0,null,0,0,0]
[null,null,null,null,0,null,null,null,null,null,0,null,0,0,0]
[null,null,null,null,0,null,null,null,null,null,0,null,0,0,0]
["I7. Comunicacions (telèfon, correus, connexió a internet)",{"$f":"SUM(B102:B105)","v":0},null,{"$f":"SUM(D102:D105)","v":0},0,null,"I7. Comunicacions (telèfon, correus, connexió a internet)",{"$f":"SUM(H102:H105)","v":0},null,{"$f":"SUM(J102:J105)","v":0},0,null,{"$f":"B101-H101","v":0},{"$f":"D101-J101","v":0},0]
[null,null,null,null,0,null,null,null,null,null,0,null,{"$f":"B102-H102","v":0},0,0]
[null,null,null,null,0,null,null,null,null,null,0,null,0,0,0]
[null,null,null,null,0,null,null,null,null,null,0,null,0,0,0]
[null,null,null,null,0,null,null,null,null,null,0,null,0,0,0]
["I8. Despeses financeres",{"$f":"SUM(B107:B110)","v":0},null,{"$f":"SUM(D107:D110)","v":0},0,null,"I8. Despeses financeres",{"$f":"SUM(H107:H110)","v":0},null,{"$f":"SUM(J107:J110)","v":0},0,null,{"$f":"B106-H106","v":0},{"$f":"D106-J106","v":0},0]
[null,null,null,null,0,null,null,null,null,null,0,null,{"$f":"B107-H107","v":0},0,0]
[null,null,null,null,0,null,null,null,null,null,0,null,0,0,0]
[null,null,null,null,0,null,null,null,null,null,0,null,0,0,0]
[null,null,null,null,0,null,null,null,null,null,0,null,0,0,0]
["I9. Subministraments",{"$f":"SUM(B112:B115)","v":0},null,{"$f":"SUM(D112:D115)","v":0},0,null,"I9. Subministraments",{"$f":"SUM(H112:H115)","v":0},null,{"$f":"SUM(J112:J115)","v":0},0,null,{"$f":"B111-H111","v":0},{"$f":"D111-J111","v":0},0]
[null,null,null,null,0,null,null,null,null,null,0,null,{"$f":"B112-H112","v":0},0,0]
[null,null,null,null,0,null,null,null,null,null,0,null,0,0,0]
[null,null,null,null,0,null,null,null,null,null,0,null,0,0,0]
[null,null,null,null,0,null,null,null,null,null,0,null,0,0,0]
["I10. Treball realitzat per altres empreses, parcialment imputables al projecte (neteja, seguretat...)",{"$f":"SUM(B117:B120)","v":0},null,{"$f":"SUM(D117:D120)","v":0},0,null,"I10. Treball realitzat per altres empreses, parcialment imputables al projecte (neteja, seguretat...)",{"$f":"SUM(H117:H120)","v":0},null,{"$f":"SUM(J117:J120)","v":0},0,null,{"$f":"B116-H116","v":0},{"$f":"D116-J116","v":0},0]
[null,null,null,null,0,null,null,null,null,null,0,null,{"$f":"B117-H117","v":0},0,0]
[null,null,null,null,0,null,null,null,null,null,0,null,0,0,0]
[null,null,null,null,0,null,null,null,null,null,0,null,0,0,0]
[null,null,null,null,0,null,null,null,null,null,0,null,0,0,0]
["TOTAL DESPESES INDIRECTES (es podran assignar al projecte subvencionable fent sevir un percentatge d’assignació) - Màxim 10% de l’import imputable a la subvenció municipal",{"$f":"SUM(B71,B76,B81,B86,B91,B96,B101,B106,B111,B116)","v":0},{"$f":"IF(B121>0,B121/$B$13,)","v":0},{"$f":"SUM(D71,D76,D81,D86,D91,D96,D101,D106,D111,D116)","v":0},{"$f":"E71+E76+E81+E86+E91+E96+E101+E106+E111+E116","v":0},null,"TOTAL DESPESES INDIRECTES (es podran assignar al projecte subvencionable fent sevir un percentatge d’assignació) - Màxim 10% de l’import imputable a la subvenció municipal",{"$f":"SUM(H71,H76,H81,H86,H91,H96,H101,H106,H111,H116)","v":0},{"$f":"IF(H121>0,H121/$H$13,)","v":0},{"$f":"SUM(J71,J76,J81,J86,J91,J96,J101,J106,J111,J116)","v":0},{"$f":"K71+K76+K81+K86+K91+K96+K101+K106+K111+K116","v":0},{"$f":"+IF(H121>H13*0.1,\"ALERTA: Màxim 10% import imputable a la subvenció municipal\", \" \")","v":" "},{"$f":"B121-H121","v":0},{"$f":"D121-J121","v":0},0]
["TOTAL DE DESPESES PREVISTES",{"$f":"SUM(B70+B121)","v":0},{"$f":"IF(B122>0,B122/$B$13,)","v":0},{"$f":"SUM(D70+D121)","v":0},{"$f":"SUM(E70+E121)","v":0},null,"TOTAL DE DESPESES PREVISTES",{"$f":"SUM(H70+H121)","v":0},{"$f":"IF(H122>0,H122/$H$13,)","v":0},{"$f":"SUM(J70+J121)","v":0},{"$f":"SUM(K70+K121)","v":0},null,0,{"$f":"D122-J122","v":0},0]
[null,{"$f":"IF(B122>B13,\"La suma del detall de despeses no pot ser superior a l'import total de subvenció municipal indicat al requadre\",(IF(B122<B13,\"La suma del detall de despeses no pot ser inferior a l'import total de subvenció municipal indicat al requadre\",\"\")))","v":""},null,{"$f":"IF(D122>B14,\"La suma del detall de despeses no pot ser superior a l'import total de l'aportació/confinançament indicat al requadre\",(IF(D122<B14,\"La suma del detall de despeses no pot ser inferior a l'import total de l'aportació/confinançament indicat al requadre\",\"\")))","v":""},{"$f":"IF(E122>B12,\"La suma del detall de despeses no pot ser superior a l'import total del projecte indicat al requadre\",(IF(E122<B12,\"La suma del detall de despeses no pot ser inferior a l'import total del projecte indicat al requadre\",\"\")))","v":""},null,null,{"$f":"IF(H122>H13,\"La suma del detall de despeses no pot ser superior a l'import total de subvenció municipal indicat al requadre\",(IF(H122<H13,\"La suma del detall de despeses no pot ser inferior a l'import total de subvenció municipal indicat al requadre\",\"\")))","v":""},null,{"$f":"IF(J122>H14,\"La suma del detall de despeses no pot ser superior a l'import total de l'aportació/confinançament indicat al requadre\",(IF(J122<H14,\"La suma del detall de despeses no pot ser inferior a l'import total de l'aportació/confinançament indicat al requadre\",\"\")))","v":""},{"$f":"IF(K122>H12,\"La suma del detall de despeses no pot ser superior a l'import total del projecte indicat al requadre\",(IF(K122<H12,\"La suma del detall de despeses no pot ser inferior a l'import total del projecte indicat al requadre\",\"\")))","v":""}]
["Modalitat Ba: Intercooperació de 2n i major nivell: Projectes promoguts per organitzacions  representatives o referents de l'Economia Social i Solidària o de les finances ètiques de segon nivell i superior, que contribueixin al desplegament de l’Estratègia ESSBCN2030 de Barcelona i els objectius estratègics del PIESS 2024-2027, i tinguin per destinatàries a les seves organitzacions sòcies"]
[" 1. La quantia de la subvenció atorgada no superarà el 80% de la despesa total del projecte a subvencionar. "]
[" 2. L'import màxim de subvenció per a la modalitat Ba és 25.000€."]
[" 3. En el cas que la sol·licitud presentada sobrepassi l’import màxim, es considerarà com a import sol·licitat el màxim de l'establert a la convocatòria."]
[" 4. Es limita amb un màxim del 25% l'import de la subvenció per a despeses de personal propi assignat al projecte subvencionat (retribucions i seguretat social- règim general o autònoms). "]
[" 5. Les despeses de lloguers immobles de la seu de l'entitat en cap cas es podran imputar com a despesa directa."]
[" 6. Són imputables en aquesta modalitat les despeses indirectes, detallades en l’apartat 13.3. de les bases reguladores; amb un màxim del 10% de l'import de la subvenció.\nEl caràcter subvencionable de la despesa d'amortització estarà subjecte a les condicions següents:\n> Que les subvencions no hagin contribuït a la compra dels béns.\n> Que l'amortització es calculi de conformitat amb les normes de comptabilitat generalment acceptades.\n> Que el cost es refereixi al període subvencionable.\n\n"]
[" 7. Per les subvencions atorgades per import igual o superior a 20.000 € és obligatori un informe d'auditoria per a la justificació. L'import d'aquest informe es considera despesa subvencionable, amb un límit màxim de 1.500 €."]
[" 8. Viatges i desplaçaments imputables a les activitats del projecte subvencionable (amb un límit del 7% de la subvenció)"]
[" 9. En cap cas es consideraran despeses subvencionables:\n> Els impostos indirectes quan siguin susceptibles de recuperació o compensació.\n> Les despeses d'inversió, incloses les adquisicions de béns mobles.\n> Les despeses realitzades amb data anterior a l'inici del projecte i data posterior a la finalització del projecte.\n> Altres despeses que s'indiquin a la convocatòria."]
[" 10. La retribució de les persones contractades en el marc del projecte subvencionat no pot ser inferior al Salari Mínim Interprofessional (SMI), ni a l'estipulada al corresponent conveni o marc normatiu de referència (punt 7 de les bases 2025: requisits dels projectes)."]
[" 11. Els materials produïts de difusió, estudis, informes o materials didàctics utilitzats, etc. en el cas de tractar-se de despesa elegible de la subvenció, hauran de tenir llicència Creative Commons -Compartir Igual- (share a like)  i no podrà tenir la condició –Sense Obres Derivades- (no derivate Works)."]
[" 12. Els projectes subvencionats han de fomentar activitats d'interès públic o social, les quals han de ser gratuïtes per a les persones participants o en cap cas el preu ha de suposar un obstacle per a la seva participació, buscant altres formes d'accés per a persones amb dificultats econòmiques. En el cas que hi hagi algun tipus de lucre, haurà de revertir en les pròpies activitats subvencionades."]
[" 13. L'Ajuntament de Barcelona i les seves entitats municipals en cap cas subvencionaran el mateix projecte, executat durant el mateix període, per cap altre procediment de concessió que no sigui el regulat per les bases reguladores."]
[" 14. El/la beneficiari/ària no podrà alterar en cap cas el destí de les subvencions concedides."]
[" 15. En cas de realitzar-se despeses superiors als imports establerts pels contractes menors de serveis, subministraments i obres de la Llei de Contractes del Sector Públic 9/2017, s’hauran d'incorporar tres pressupostos sol·licitats i argumentar el motiu de l'adjudicació en el cas de no ser la proposta més avantatjosa econòmicament."]
[" 16. No es poden imputar en cap cas despeses d’inversió, corresponents a partides de l'immobilitzat, amb els diners de la subvenció atorgada en aquesta convocatòria específica. Sí que es poden imputar a la part  de contribució, sempre que siguin despeses dins el període executiu del projecte subvencionat i acreditables tal i com es descriu a les bases reguladores vigents."]
[" 17. En cas de realitzar-se despeses superiors als imports establerts pels contractes menors de serveis, subministraments i obres de la Llei de Contractes del Sector Públic 9/2017, s’hauran d'incorporar tres pressupostos sol·licitats i argumentar el motiu de l'adjudicació en el cas de no ser la proposta més avantatjosa econòmicament."]
[" 18. En el cas de presentar tiquets, el seu import no podrà superar el 10% de la subvenció i aniran acompanyats d'una declaració responsable del representant legal de la  persona jurídica o de l'agrupació de persones jurídiques que indicarà en quin concepte s'imputa aquesta despesa."]

{"sheet":"Resum Pressupost","index":2,"n_rows":27,"n_cols":12,"rows_kept":27,"cut":false,"hidden":false,"merged":[[26,7,26,10],[6,7,7,8],[6,9,7,9],[6,10,7,10],[9,7,10,7],[9,8,10,8],[9,9,10,9],[9,10,10,10],[12,7,13,7],[12,8,13,8],[12,9,13,9],[12,10,13,10],[21,7,21,8],[10,0,11,0],[17,0,18,1],[17,2,18,3],[17,4,18,5],[1,2,2,8],[3,0,3,9],[5,0,5,1],[6,0,7,1],[6,2,7,3],[6,4,7,5]]}
[]
[null,null,"Resum pressupost Ba"]
[]
["Subvencions de l'Ajuntament de Barcelona per l'enfortiment de l'Economia Social i Solidària i per la intercooperació en l'Estratègia #ESSBCN2030 - ENFORTIM L’ESS 2025",null,null,null,null,null,null,null,null,null,"MODALITAT Ba"]
[]
["DESPESES PREVISTES",null,"SOL·LICITUD INICIAL","REFORMULACIÓ","SOL·LICITUD INICIAL","REFORMULACIÓ",null,"INGRESSOS PREVISTOS",null,"SOL·LICITUD INICIAL","REFORMULACIÓ"]
["Despeses directes \n(aquelles que s'identifiquen directament amb el projecte)",null,"Cost total",null,"Subvenció",null,null,"Ingressos previstos",null,"Previsió inicial ingrés total","Previsió reformulada ingrés total"]
[]
["Ba","D1. Retribucions i seguretat social (règim general) del personal propi vinculat directament i de forma significativa al projecte subvencionable (màxim 25% subvenció)",{"$f":"+'Reformulació Pressupost Ba'!E20","v":0},{"$f":"+'Reformulació Pressupost Ba'!K20","v":0},{"$f":"+'Reformulació Pressupost Ba'!B20","v":0},{"$f":"+'Reformulació Pressupost Ba'!H20","v":0},null,"A.","Subvenció municipal (import sol·licitat a la instància/atorgat)",{"$f":"'Reformulació Pressupost Ba'!B13","v":0},{"$f":"'Reformulació Pressupost Ba'!H13","v":0}]
[null,"D2. Treballs realitzats per professionals i empreses externes directament vinculades a l’acompanyament de processos de l’organització i amb les seves associades vinculats a les accions subvencionades",{"$f":"+'Reformulació Pressupost Ba'!E27","v":0},{"$f":"+'Reformulació Pressupost Ba'!K27","v":0},{"$f":"+'Reformulació Pressupost Ba'!B27","v":0},{"$f":"+'Reformulació Pressupost Ba'!H27","v":0},null,"B.","Subvencions d'altres administracions"]
[null,"D3. Lloguer de bens immobles directament vinculats al projecte subvencionable.",{"$f":"+'Reformulació Pressupost Ba'!E33","v":0},{"$f":"+'Reformulació Pressupost Ba'!K33","v":0},{"$f":"+'Reformulació Pressupost Ba'!B33","v":0},{"$f":"+'Reformulació Pressupost Ba'!H33","v":0},null,null,null,null,null,{"$f":"+IF(K11<0,\"No s'admeten valors negatius\",\"\")","v":""}]
[null,"D4. Adquisició de materials i béns consumibles íntegrament imputables al projecte subvencionable.",{"$f":"+'Reformulació Pressupost Ba'!E39","v":0},{"$f":"+'Reformulació Pressupost Ba'!K39","v":0},{"$f":"+'Reformulació Pressupost Ba'!B39","v":0},{"$f":"+'Reformulació Pressupost Ba'!H39","v":0},null,"C.","Subvencions d'ens privats",null,null,""]
[null,"D5. Publicitat i propaganda de les activitats directament vinculades al projecte subvencionable.",{"$f":"+'Reformulació Pressupost Ba'!E45","v":0},{"$f":"+'Reformulació Pressupost Ba'!K45","v":0},{"$f":"+'Reformulació Pressupost Ba'!B45","v":0},{"$f":"+'Reformulació Pressupost Ba'!H45","v":0},null,"D.","Recursos propis de l'organització aplicats al projecte"]
[null,"D6. Viatges i desplaçaments imputables a les activitats del projecte subvencionable (amb un límit del 7% de la subvenció).",{"$f":"+'Reformulació Pressupost Ba'!E51","v":0},{"$f":"+'Reformulació Pressupost Ba'!K51","v":0},{"$f":"+'Reformulació Pressupost Ba'!B51","v":0},{"$f":"+'Reformulació Pressupost Ba'!H51","v":0}]
[null,"D7. Despeses de l’informe d’auditoria (amb un límit màxim de 1.500 euros de la subvenció)",{"$f":"+'Reformulació Pressupost Ba'!E57","v":0},{"$f":"+'Reformulació Pressupost Ba'!K57","v":0},{"$f":"+'Reformulació Pressupost Ba'!B57","v":0},{"$f":"+'Reformulació Pressupost Ba'!H57","v":0},null,"E.","Taquillatge"]
[null,"D8. Altres despeses que de manera justificada puguin imputar-se directament al projecte subvencionable.",{"$f":"+'Reformulació Pressupost Ba'!E63","v":0},{"$f":"+'Reformulació Pressupost Ba'!K63","v":0},{"$f":"+'Reformulació Pressupost Ba'!B63","v":0},{"$f":"+'Reformulació Pressupost Ba'!H63","v":0},null,"F.","Quotes d'inscripció"]
[null,"Total Despeses Directes   ",{"$f":"SUM(C9:C16)","v":0},{"$f":"SUM(D9:D16)","v":0},{"$f":"SUM(E9:E16)","v":0},{"$f":"SUM(F9:F16)","v":0},null,"G.","Venda de Productes"]
["Despeses indirectes (màxim 10% subvenció)",null,"Indirectes inicial total",null,"Indirectes inicial subvenció",null,null,"H","Publicitat i/o Esponsorització"]
[null,null,null,null,null,null,null,"I.","Altres ingressos"]
[null,"Total Despeses Indirectes   ",{"$f":"'Reformulació Pressupost Ba'!E121","v":0},{"$f":"'Reformulació Pressupost Ba'!K121","v":0},{"$f":"'Reformulació Pressupost Ba'!B121","v":0},{"$f":"'Reformulació Pressupost Ba'!H121","v":0},null,null,"Total Ingressos",{"$f":"SUM(J9:J19)","v":0},0]
[null,"Total Despeses ",{"$f":"+C17+C20","v":0},0,0,0]
[null,null,null,null,null,null,null,"Ingressos menys despeses ",null,{"$f":"+J20-C21","v":0},{"$f":"+K20-D21","v":0}]
[]
[null,null,null,null,null,null,null,null,null,"% subvencionat inicialment",{"$f":"IF(J9>0,J9/C21,\"\")","v":""}]
[]
[null,null,null,null,null,null,null,null,null,"% subvencionat després de reformular",{"$f":"IF(K9>9,K9/D21,\"\")","v":""},"*"]
[null,null,null,null,null,null,null,"*Aquest percentatge ha de ser igual o menor al percentatge subvencionat inicialment."]